[Event "Centenary THK University 2019"]
[Site "Ankara"]
[Date "2019.05.19"]
[Round "5"]
[White "Kilic, Gulseren"]
[Black "Sonmez, Yusuf"]
[Result "0-1"]
[ECO "C54"]
[WhiteElo "1454"]
[BlackElo "1329"]
[Annotator "NA RC"]
[PlyCount "68"]
[EventDate "2019.05.17"]
[EventType "swiss"]
[EventCountry "TUR"]
[SourceTitle "playchess.com"]
[Source "ChessBase"]
[SourceQuality "1"]
[TimeControl "5400+30"]

1. e4 {[%emt 0:30:30]} e5 {[%emt 0:30:30]} 2. Nf3 {[%emt 0:00:00]} Nc6 {[%emt 0:00:30]} 3. Bc4 {[%emt 0:00:00]} Bc5 {[%emt 0:00:00]} 4. c3 {[%emt 0:00:00]} d6 {[%emt 0:00:00]} 5. d4 {[%emt 0:00:00]} exd4 {[%emt 0:00:00]} 6. cxd4 {[%emt 0:00:30]} Bb4+ {[%emt 0:00:00]} 7. Nc3 {[%emt 0:00:30]} Nf6 {[%emt 0:00:00]} 8. O-O {[%emt 0:00:30]} O-O {[%emt 0:01:00]} 9. Bg5 {[%emt 0:00:00]} Bxc3 {[%emt 0:01:30]} 10. bxc3 {[%emt 0:04:00]} Bg4 {[%emt 0:01:30]} 11. Re1 {[%emt 0:00:30]} Re8 {[%emt 0:00:30]} 12. Re3 {[%emt 0:11:30]} h6 {[%emt 0:04:30]} 13. Bh4 {[%emt 0:00:00]} g5 {[%emt 0:01:30]} 14. Bg3 {[%emt 0:00:00]} Nxe4 {[%emt 0:11:30]} 15. Qb3 {[%emt 0:00:30]} Qd7 {[%emt 0:05:30]} 16. Bd5 {[%emt 0:07:30]} Nf6 {[%emt 0:03:30]} 17. Rae1 {[%emt 0:05:30]} Rxe3 {[%emt 0:03:30]} 18. fxe3 {[%emt 0:04:30]} Nxd5 {[%emt 0:00:30]} 19. Qxd5 {[%emt 0:00:00]} Be6 {[%emt 0:00:30]} 20. Qb5 {[%emt 0:03:00]} Bxa2 {[%emt 0:00:30]} 21. c4 {[%emt 0:03:30]} Ne5 {[%emt 0:08:30]} 22. Qxb7 {[%emt 0:00:30]} Nxf3+ {[%emt 0:00:30]} 23. gxf3 {[%emt 0:00:00]} Qc8 {[%emt 0:01:30]} 24. Qc6 {[%emt 0:09:00]} Rb8 {[%emt 0:01:30]} 25. Ra1 {[%emt 0:01:43]} Rb1+ {[%emt 0:00:30]} 26. Rxb1 {[%emt 0:00:02]} Bxb1 {[%emt 0:00:00]} 27. e4 {[%emt 0:00:29]} Qb8 {[%emt 0:01:00]} 28. e5 {[%emt 0:01:01]} Qb2 {[%emt 0:03:30]} 29. Bf2 {[%emt 0:04:51]} Qc1+ {[%emt 0:03:59]} 30. Kg2 {[%emt 0:00:05]} Bd3 {[%emt 0:00:15]} 31. Qxc7 {[%emt 0:04:37]} Bf1+ {[%emt 0:00:11]} 32. Kh1 {[%emt 0:01:29]} Bh3+ {[%emt 0:01:09]} 33. Bg1 {[%emt 0:00:06]} Qf1 {[%emt 0:00:00]} 34. Qd8+ {[%emt 0:05:58]} Kh7 {[%emt 0:00:03]} 0-1

[Event "Centenary THK University 2019"]
[Site "Ankara"]
[Date "2019.05.19"]
[Round "5"]
[White "Oktem, Ege Tuna"]
[Black "Gedik, Ahmet"]
[Result "0-1"]
[ECO "A35"]
[WhiteElo "1235"]
[BlackElo "1438"]
[Annotator "NA RC"]
[PlyCount "85"]
[EventDate "2019.05.17"]
[EventType "swiss"]
[EventCountry "TUR"]
[SourceTitle "playchess.com"]
[Source "ChessBase"]
[SourceQuality "1"]
[TimeControl "5400+30"]

1. d4 {[%emt 0:30:30]} Nf6 {[%emt 0:30:30]} 2. Nf3 {[%emt 0:00:00]} c5 {[%emt 0:01:30]} 3. e3 {[%emt 0:00:00]} g6 {[%emt 0:01:30]} 4. c4 {[%emt 0:00:30]} Bg7 {[%emt 0:00:00]} 5. Be2 {[%emt 0:00:30]} O-O {[%emt 0:00:00]} 6. O-O {[%emt 0:00:00]} cxd4 {[%emt 0:00:30]} 7. exd4 {[%emt 0:00:00]} d5 {[%emt 0:00:30]} 8. cxd5 {[%emt 0:00:00]} Nxd5 {[%emt 0:00:30]} 9. Nc3 {[%emt 0:00:00]} Nc6 {[%emt 0:05:30]} 10. Be3 {[%emt 0:07:30]} e6 {[%emt 0:06:30]} 11. Qd2 {[%emt 0:01:30]} Re8 {[%emt 0:07:30]} 12. Rfd1 {[%emt 0:03:30]} a6 {[%emt 0:01:30]} 13. Rac1 {[%emt 0:00:30]} Qa5 {[%emt 0:05:30]} 14. a3 {[%emt 0:04:30]} Bd7 {[%emt 0:03:30]} 15. Ne4 {[%emt 0:02:30]} Qb6 {[%emt 0:03:30]} 16. Nd6 {[%emt 0:01:30]} Red8 {[%emt 0:00:30]} 17. Nc4 {[%emt 0:00:30]} Qa7 {[%emt 0:02:30]} 18. Nd6 {[%emt 0:22:30]} Nce7 {[%emt 0:05:30]} 19. Ng5 {[%emt 0:05:11]} Be8 {[%emt 0:01:30]} 20. Nxe8 {[%emt 0:02:04]} Rxe8 {[%emt 0:00:30]} 21. Ne4 {[%emt 0:00:33]} Nf5 {[%emt 0:02:37]} 22. Bf3 {[%emt 0:05:48]} Qb6 {[%emt 0:08:37]} 23. Nc3 {[%emt 0:02:21]} Nfe7 {[%emt 0:03:03]} 24. Nxd5 {[%emt 0:03:25]} Nxd5 {[%emt 0:00:09]} 25. Bxd5 {[%emt 0:00:10]} exd5 {[%emt 0:00:08]} 26. Rc5 {[%emt 0:00:21]} Rad8 {[%emt 0:00:18]} 27. Qa5 {[%emt 0:00:03]} Qe6 {[%emt 0:01:05]} 28. h3 {[%emt 0:00:13]} b6 {[%emt 0:00:00]} 29. Qc3 {[%emt 0:01:02]} bxc5 {[%emt 0:00:12]} 30. Qxc5 {[%emt 0:00:30]} Rb8 {[%emt 0:00:30]} 31. b4 {[%emt 0:00:30]} Rec8 {[%emt 0:00:30]} 32. Qa5 {[%emt 0:00:30]} Rc2 {[%emt 0:00:21]} 33. Qa4 {[%emt 0:00:00]} Rbc8 {[%emt 0:00:30]} 34. b5 {[%emt 0:00:00]} axb5 {[%emt 0:00:30]} 35. Qxb5 {[%emt 0:00:27]} Qc6 {[%emt 0:00:57]} 36. Qa5 {[%emt 0:00:00]} Ra8 {[%emt 0:00:30]} 37. Qe1 {[%emt 0:00:20]} Rxa3 {[%emt 0:00:30]} 38. Bf4 {[%emt 0:00:36]} Raa2 {[%emt 0:00:25]} 39. Bg3 {[%emt 0:00:20]} Bxd4 {[%emt 0:00:47]} 40. Rxd4 {[%emt 0:01:04]} Rc1 {[%emt 0:00:21]} 41. Rd1 {[%emt 0:00:05]} Raa1 {[%emt 0:00:14]} 42. Qe7 {[%emt 0:00:30]} Rxd1+ {[%emt 0:00:09]} 43. Kh2 {[%emt 0:00:00]} 0-1

[Event "Centenary THK University 2019"]
[Site "Ankara"]
[Date "2019.05.19"]
[Round "5"]
[White "Onluel, Mert Kaan"]
[Black "Deveci, Huseyin Said"]
[Result "1-0"]
[ECO "C26"]
[WhiteElo "1190"]
[BlackElo "1274"]
[Annotator "NA RC"]
[PlyCount "67"]
[EventDate "2019.05.17"]
[EventType "swiss"]
[EventCountry "TUR"]
[SourceTitle "playchess.com"]
[Source "ChessBase"]
[SourceQuality "1"]
[TimeControl "5400+30"]

1. e4 {[%emt 0:30:30]} e5 {[%emt 0:30:30]} 2. Nc3 {[%emt 0:00:30]} Nf6 {[%emt 0:00:30]} 3. g3 {[%emt 0:00:30]} Bb4 {[%emt 0:03:30]} 4. Bg2 {[%emt 0:00:30]} O-O {[%emt 0:00:30]} 5. Nge2 {[%emt 0:02:30]} Nc6 {[%emt 0:02:30]} 6. O-O {[%emt 0:02:30]} Re8 {[%emt 0:01:30]} 7. d3 {[%emt 0:00:30]} h6 {[%emt 0:03:30]} 8. h3 {[%emt 0:01:30]} d6 {[%emt 0:03:30]} 9. Be3 {[%emt 0:02:30]} Be6 {[%emt 0:02:30]} 10. f4 {[%emt 0:01:30]} exf4 {[%emt 0:02:30]} 11. Nxf4 {[%emt 0:00:00]} Qd7 {[%emt 0:06:30]} 12. Kh2 {[%emt 0:00:00]} Rad8 {[%emt 0:00:30]} 13. Nce2 {[%emt 0:05:30]} Nh7 {[%emt 0:12:30]} 14. c3 {[%emt 0:03:30]} Ba5 {[%emt 0:00:30]} 15. Nxe6 {[%emt 0:01:30]} fxe6 {[%emt 0:03:30]} 16. Nf4 {[%emt 0:01:30]} Ne5 {[%emt 0:04:14]} 17. Qe2 {[%emt 0:02:30]} Nf8 {[%emt 0:03:47]} 18. d4 {[%emt 0:05:30]} Nf7 {[%emt 0:01:28]} 19. Nh5 {[%emt 0:01:30]} e5 {[%emt 0:00:54]} 20. d5 {[%emt 0:00:30]} Bb6 {[%emt 0:00:30]} 21. Bxb6 {[%emt 0:00:30]} axb6 {[%emt 0:00:30]} 22. h4 {[%emt 0:02:30]} Ng6 {[%emt 0:06:08]} 23. Bh3 {[%emt 0:01:30]} Qe7 {[%emt 0:00:08]} 24. Be6 {[%emt 0:01:30]} Ngh8 {[%emt 0:02:11]} 25. Qg4 {[%emt 0:00:30]} g6 {[%emt 0:01:07]} 26. Rxf7 {[%emt 0:00:30]} Qxf7 {[%emt 0:00:53]} 27. Bxf7+ {[%emt 0:00:30]} Kxf7 {[%emt 0:00:14]} 28. Rf1+ {[%emt 0:00:00]} Kg8 {[%emt 0:00:39]} 29. Nf6+ {[%emt 0:00:00]} Kg7 {[%emt 0:01:21]} 30. Nxe8+ {[%emt 0:00:30]} Rxe8 {[%emt 0:00:00]} 31. Qd7+ {[%emt 0:00:00]} Kg8 {[%emt 0:00:36]} 32. Qxe8+ {[%emt 0:00:00]} Kh7 {[%emt 0:01:04]} 33. Qe7+ {[%emt 0:00:30]} Kg8 {[%emt 0:00:30]} 34. Rf8# {[%emt 0:00:00]} 1-0

[Event "Centenary THK University 2019"]
[Site "Ankara"]
[Date "2019.05.19"]
[Round "6"]
[White "Ozalp, Burak"]
[Black "Atayman, Evren"]
[Result "1-0"]
[ECO "B70"]
[WhiteElo "1901"]
[BlackElo "1611"]
[Annotator "NA RC"]
[PlyCount "75"]
[EventDate "2019.05.17"]
[EventType "swiss"]
[EventCountry "TUR"]
[SourceTitle "playchess.com"]
[Source "ChessBase"]
[SourceQuality "1"]
[TimeControl "5400+30"]

1. e4 {[%emt 0:30:30]} c5 {[%emt 0:30:30]} 2. Nf3 {[%emt 0:00:00]} d6 {[%emt 0:00:30]} 3. d4 {[%emt 0:00:00]} cxd4 {[%emt 0:00:30]} 4. Nxd4 {[%emt 0:00:00]} Nf6 {[%emt 0:00:00]} 5. Nc3 {[%emt 0:00:00]} g6 {[%emt 0:01:00]} 6. Be2 {[%emt 0:00:30]} Bg7 {[%emt 0:00:00]} 7. O-O {[%emt 0:00:00]} O-O {[%emt 0:00:00]} 8. Bg5 {[%emt 0:00:00]} Nc6 {[%emt 0:01:30]} 9. Nb3 {[%emt 0:00:00]} Be6 {[%emt 0:05:30]} 10. Re1 {[%emt 0:00:00]} Rc8 {[%emt 0:02:30]} 11. Bf1 {[%emt 0:00:30]} Na5 {[%emt 0:02:30]} 12. e5 {[%emt 0:03:30]} Ne8 {[%emt 0:07:30]} 13. Nxa5 {[%emt 0:03:30]} Qxa5 {[%emt 0:00:30]} 14. Bxe7 {[%emt 0:00:00]} Bxe5 {[%emt 0:01:30]} 15. Bxf8 {[%emt 0:00:00]} Kxf8 {[%emt 0:00:30]} 16. Rb1 {[%emt 0:09:30]} Nf6 {[%emt 0:02:30]} 17. g3 {[%emt 0:01:30]} Qc5 {[%emt 0:04:30]} 18. Bg2 {[%emt 0:03:30]} Ng4 {[%emt 0:06:30]} 19. Ne4 {[%emt 0:03:30]} Qxc2 {[%emt 0:02:30]} 20. h3 {[%emt 0:04:30]} Nxf2 {[%emt 0:08:30]} 21. Nxf2 {[%emt 0:03:30]} Bxg3 {[%emt 0:01:30]} 22. Re2 {[%emt 0:03:30]} Qc5 {[%emt 0:00:00]} 23. b4 {[%emt 0:06:30]} Qb6 {[%emt 0:04:41]} 24. a4 {[%emt 0:00:30]} Bf5 {[%emt 0:00:36]} 25. Rc1 {[%emt 0:01:30]} Rd8 {[%emt 0:04:16]} 26. Qb3 {[%emt 0:01:30]} Be5 {[%emt 0:01:23]} 27. a5 {[%emt 0:01:30]} Qd4 {[%emt 0:00:11]} 28. Qc4 {[%emt 0:01:30]} Rc8 {[%emt 0:01:00]} 29. Qxd4 {[%emt 0:01:30]} Rxc1+ {[%emt 0:02:54]} 30. Qd1 {[%emt 0:00:00]} Rxd1+ {[%emt 0:01:59]} 31. Nxd1 {[%emt 0:00:00]} Bd3 {[%emt 0:00:05]} 32. Rd2 {[%emt 0:01:30]} Ba6 {[%emt 0:00:30]} 33. Bf1 {[%emt 0:00:00]} f5 {[%emt 0:01:23]} 34. Bxa6 {[%emt 0:00:00]} bxa6 {[%emt 0:00:00]} 35. Rc2 {[%emt 0:00:00]} d5 {[%emt 0:00:00]} 36. Rc6 {[%emt 0:01:00]} d4 {[%emt 0:00:06]} 37. Rxa6 {[%emt 0:00:30]} d3 {[%emt 0:00:07]} 38. b5 {[%emt 0:00:00]} 1-0

[Event "Centenary THK University 2019"]
[Site "Ankara"]
[Date "2019.05.19"]
[Round "6"]
[White "Celikel, Fatih"]
[Black "Sekerci, Berkin"]
[Result "1-0"]
[ECO "D02"]
[WhiteElo "1868"]
[BlackElo "1752"]
[Annotator "NA RC"]
[PlyCount "81"]
[EventDate "2019.05.17"]
[EventType "swiss"]
[EventCountry "TUR"]
[SourceTitle "playchess.com"]
[Source "ChessBase"]
[SourceQuality "1"]
[TimeControl "5400+30"]

1. d4 {[%emt 0:30:30]} d5 {[%emt 0:31:30]} 2. Bf4 {[%emt 0:00:00]} Nf6 {[%emt 0:00:30]} 3. e3 {[%emt 0:00:00]} c5 {[%emt 0:00:30]} 4. c3 {[%emt 0:00:30]} Nc6 {[%emt 0:00:00]} 5. Nd2 {[%emt 0:00:00]} Bg4 {[%emt 0:00:00]} 6. Ngf3 {[%emt 0:00:00]} e6 {[%emt 0:00:30]} 7. Qb3 {[%emt 0:00:30]} Qc8 {[%emt 0:00:30]} 8. Bb5 {[%emt 0:00:30]} c4 {[%emt 0:00:30]} 9. Qa4 {[%emt 0:00:30]} a6 {[%emt 0:01:30]} 10. Bxc6+ {[%emt 0:00:30]} Qxc6 {[%emt 0:00:30]} 11. Qxc6+ {[%emt 0:00:30]} bxc6 {[%emt 0:00:30]} 12. Ne5 {[%emt 0:00:30]} c5 {[%emt 0:00:00]} 13. b3 {[%emt 0:04:30]} cxd4 {[%emt 0:01:00]} 14. exd4 {[%emt 0:00:00]} Ba3 {[%emt 0:00:00]} 15. bxc4 {[%emt 0:00:00]} Bb2 {[%emt 0:00:00]} 16. Rb1 {[%emt 0:02:30]} Bxc3 {[%emt 0:00:00]} 17. Nxg4 {[%emt 0:00:30]} Nxg4 {[%emt 0:01:00]} 18. cxd5 {[%emt 0:01:30]} exd5 {[%emt 0:00:30]} 19. O-O {[%emt 0:01:30]} O-O {[%emt 0:00:30]} 20. Nb3 {[%emt 0:00:30]} Rfe8 {[%emt 0:03:30]} 21. h3 {[%emt 0:03:30]} Nf6 {[%emt 0:02:30]} 22. Rfc1 {[%emt 0:03:30]} Rac8 {[%emt 0:01:30]} 23. Be3 {[%emt 0:02:30]} Ne4 {[%emt 0:08:30]} 24. Rc2 {[%emt 0:07:30]} Bb4 {[%emt 0:03:30]} 25. Rbc1 {[%emt 0:00:30]} Nd6 {[%emt 0:03:30]} 26. Rc6 {[%emt 0:07:30]} a5 {[%emt 0:03:30]} 27. Rxc8 {[%emt 0:12:30]} Rxc8 {[%emt 0:00:30]} 28. Nc5 {[%emt 0:04:13]} Nc4 {[%emt 0:01:30]} 29. Nd3 {[%emt 0:00:53]} Bd6 {[%emt 0:05:30]} 30. Bf4 {[%emt 0:01:45]} Be7 {[%emt 0:02:30]} 31. Rb1 {[%emt 0:01:12]} Bf6 {[%emt 0:04:30]} 32. Be5 {[%emt 0:02:41]} Bxe5 {[%emt 0:04:30]} 33. dxe5 {[%emt 0:00:18]} Kf8 {[%emt 0:01:30]} 34. Rb5 {[%emt 0:01:31]} Rd8 {[%emt 0:00:30]} 35. a4 {[%emt 0:02:22]} g5 {[%emt 0:05:37]} 36. Rc5 {[%emt 0:00:31]} Ke7 {[%emt 0:00:16]} 37. g3 {[%emt 0:02:06]} Ke6 {[%emt 0:02:32]} 38. Rc6+ {[%emt 0:01:08]} Kf5 {[%emt 0:00:50]} 39. f3 {[%emt 0:00:35]} g4 {[%emt 0:03:57]} 40. Rf6+ {[%emt 0:00:43]} Kg5 {[%emt 0:00:30]} 41. h4+ {[%emt 0:00:04]} 1-0

[Event "Centenary THK University 2019"]
[Site "Ankara"]
[Date "2019.05.19"]
[Round "6"]
[White "Ozcan, Kadir Kutay"]
[Black "Bozdemir, Yusuf"]
[Result "1-0"]
[ECO "B19"]
[WhiteElo "1822"]
[BlackElo "1619"]
[Annotator "NA RC"]
[PlyCount "47"]
[EventDate "2019.05.17"]
[EventType "swiss"]
[EventCountry "TUR"]
[SourceTitle "playchess.com"]
[Source "ChessBase"]
[SourceQuality "1"]
[TimeControl "5400+30"]

1. e4 {[%emt 0:30:30]} c6 {[%emt 0:30:30]} 2. d4 {[%emt 0:00:30]} d5 {[%emt 0:00:30]} 3. Nc3 {[%emt 0:00:00]} dxe4 {[%emt 0:00:00]} 4. Nxe4 {[%emt 0:00:00]} Bf5 {[%emt 0:00:00]} 5. Ng3 {[%emt 0:00:00]} Bg6 {[%emt 0:00:00]} 6. h4 {[%emt 0:00:00]} h6 {[%emt 0:00:00]} 7. h5 {[%emt 0:00:00]} Bh7 {[%emt 0:00:30]} 8. Nf3 {[%emt 0:00:00]} Nd7 {[%emt 0:00:30]} 9. Bd3 {[%emt 0:00:30]} Bxd3 {[%emt 0:00:00]} 10. Qxd3 {[%emt 0:00:00]} e6 {[%emt 0:00:00]} 11. Bd2 {[%emt 0:01:00]} Ngf6 {[%emt 0:00:00]} 12. Qe2 {[%emt 0:00:00]} Qc7 {[%emt 0:02:00]} 13. O-O-O {[%emt 0:00:00]} O-O-O {[%emt 0:00:00]} 14. Kb1 {[%emt 0:00:30]} Bd6 {[%emt 0:01:00]} 15. Ne4 {[%emt 0:00:30]} Nxe4 {[%emt 0:00:30]} 16. Qxe4 {[%emt 0:00:30]} Rhe8 {[%emt 0:01:30]} 17. Qg4 {[%emt 0:01:30]} Rg8 {[%emt 0:07:30]} 18. c4 {[%emt 0:01:30]} Nf6 {[%emt 0:00:30]} 19. Qh4 {[%emt 0:00:30]} Nd7 {[%emt 0:04:30]} 20. c5 {[%emt 0:01:30]} Bf8 {[%emt 0:01:30]} 21. Bf4 {[%emt 0:00:30]} Qa5 {[%emt 0:00:30]} 22. Bg3 {[%emt 0:01:30]} b5 {[%emt 0:05:30]} 23. Qf4 {[%emt 0:04:30]} f6 {[%emt 0:01:30]} 24. Qe4 {[%emt 0:00:30]} 1-0

[Event "Centenary THK University 2019"]
[Site "Ankara"]
[Date "2019.05.19"]
[Round "6"]
[White "Gok, Irfan"]
[Black "Sinay, Ahmet"]
[Result "1/2-1/2"]
[ECO "A16"]
[WhiteElo "1739"]
[BlackElo "1501"]
[Annotator "NA RC"]
[PlyCount "109"]
[EventDate "2019.05.17"]
[EventType "swiss"]
[EventCountry "TUR"]
[SourceTitle "playchess.com"]
[Source "ChessBase"]
[SourceQuality "1"]
[TimeControl "5400+30"]

1. c4 {[%emt 0:31:30]} Nf6 {[%emt 0:30:30]} 2. Nc3 {[%emt 0:00:30]} g6 {[%emt 0:00:00]} 3. g3 {[%emt 0:00:30]} Bg7 {[%emt 0:00:00]} 4. Bg2 {[%emt 0:00:30]} O-O {[%emt 0:00:30]} 5. Nf3 {[%emt 0:00:00]} d6 {[%emt 0:00:00]} 6. O-O {[%emt 0:00:00]} Nc6 {[%emt 0:01:00]} 7. Re1 {[%emt 0:00:30]} e5 {[%emt 0:00:30]} 8. d3 {[%emt 0:00:30]} h6 {[%emt 0:00:30]} 9. Rb1 {[%emt 0:00:30]} Be6 {[%emt 0:02:30]} 10. b3 {[%emt 0:01:30]} Re8 {[%emt 0:01:30]} 11. e4 {[%emt 0:01:30]} Bg4 {[%emt 0:00:30]} 12. h3 {[%emt 0:02:30]} Bxf3 {[%emt 0:00:30]} 13. Bxf3 {[%emt 0:00:30]} Nd7 {[%emt 0:01:30]} 14. Nd5 {[%emt 0:00:30]} Nf8 {[%emt 0:00:00]} 15. b4 {[%emt 0:02:30]} Nd4 {[%emt 0:00:00]} 16. Bg2 {[%emt 0:00:30]} c6 {[%emt 0:00:30]} 17. Ne3 {[%emt 0:00:30]} Nfe6 {[%emt 0:01:30]} 18. Ng4 {[%emt 0:01:30]} Kh7 {[%emt 0:01:30]} 19. Rf1 {[%emt 0:01:30]} h5 {[%emt 0:01:30]} 20. Nh2 {[%emt 0:00:30]} Rf8 {[%emt 0:06:30]} 21. Nf3 {[%emt 0:02:30]} Nxf3+ {[%emt 0:00:30]} 22. Bxf3 {[%emt 0:00:30]} Bh6 {[%emt 0:00:00]} 23. Bxh6 {[%emt 0:02:30]} Kxh6 {[%emt 0:00:00]} 24. Qd2+ {[%emt 0:01:30]} Kg7 {[%emt 0:00:30]} 25. Kg2 {[%emt 0:00:30]} Nd4 {[%emt 0:00:30]} 26. Bd1 {[%emt 0:00:30]} h4 {[%emt 0:01:30]} 27. Qe3 {[%emt 0:03:30]} f5 {[%emt 0:11:30]} 28. f4 {[%emt 0:06:30]} Qf6 {[%emt 0:05:30]} 29. fxe5 {[%emt 0:11:30]} Qxe5 {[%emt 0:00:30]} 30. gxh4 {[%emt 0:02:30]} f4 {[%emt 0:01:30]} 31. Qf2 {[%emt 0:01:30]} Rf7 {[%emt 0:02:30]} 32. Bf3 {[%emt 0:03:30]} Rh8 {[%emt 0:01:30]} 33. Rg1 {[%emt 0:01:30]} c5 {[%emt 0:05:30]} 34. bxc5 {[%emt 0:01:11]} dxc5 {[%emt 0:00:00]} 35. Kh2 {[%emt 0:03:20]} b6 {[%emt 0:05:00]} 36. Rg4 {[%emt 0:00:30]} Rh6 {[%emt 0:02:25]} 37. Rbg1 {[%emt 0:00:35]} Kh7 {[%emt 0:00:29]} 38. Rg5 {[%emt 0:01:03]} Qe7 {[%emt 0:02:11]} 39. h5 {[%emt 0:01:50]} Rg7 {[%emt 0:05:23]} 40. Rxg6 {[%emt 0:02:15]} Rgxg6 {[%emt 0:01:27]} 41. hxg6+ {[%emt 0:00:05]} Rxg6 {[%emt 0:00:36]} 42. Rxg6 {[%emt 0:00:09]} Kxg6 {[%emt 0:00:00]} 43. Qg2+ {[%emt 0:02:43]} Kf6 {[%emt 0:02:06]} 44. Qg4 {[%emt 0:01:22]} Qe5 {[%emt 0:01:33]} 45. Qh4+ {[%emt 0:00:24]} Kg6 {[%emt 0:01:26]} 46. Qg4+ {[%emt 0:01:23]} Kf6 {[%emt 0:00:10]} 47. h4 {[%emt 0:01:24]} Nc2 {[%emt 0:01:33]} 48. Qg8 {[%emt 0:00:53]} Ne1 {[%emt 0:00:41]} 49. Qh8+ {[%emt 0:00:48]} Kg6 {[%emt 0:00:39]} 50. h5+ {[%emt 0:01:24]} Kf7 {[%emt 0:00:14]} 51. Qh7+ {[%emt 0:00:46]} Kf8 {[%emt 0:02:05]} 52. Qh6+ {[%emt 0:00:11]} Ke7 {[%emt 0:01:10]} 53. Qh7+ {[%emt 0:00:45]} Kf8 {[%emt 0:00:04]} 54. Qh6+ {[%emt 0:00:39]} Ke7 {[%emt 0:00:06]} 55. Qh7+ {[%emt 0:02:06]} 1/2-1/2

[Event "Centenary THK University 2019"]
[Site "Ankara"]
[Date "2019.05.19"]
[Round "6"]
[White "Keskin, Suara"]
[Black "Incekara, Abuzer"]
[Result "1-0"]
[ECO "D02"]
[WhiteElo "1728"]
[BlackElo "1523"]
[Annotator "NA RC"]
[PlyCount "105"]
[EventDate "2019.05.17"]
[EventType "swiss"]
[EventCountry "TUR"]
[SourceTitle "playchess.com"]
[Source "ChessBase"]
[SourceQuality "1"]
[TimeControl "5400+30"]

1. d4 {[%emt 0:30:30]} Nf6 {[%emt 0:30:30]} 2. Nf3 {[%emt 0:00:00]} c5 {[%emt 0:00:30]} 3. c3 {[%emt 0:00:00]} e6 {[%emt 0:00:30]} 4. Bf4 {[%emt 0:00:30]} d5 {[%emt 0:00:00]} 5. e3 {[%emt 0:00:00]} Nc6 {[%emt 0:00:00]} 6. Nbd2 {[%emt 0:00:00]} Bd6 {[%emt 0:01:30]} 7. Ne5 {[%emt 0:00:30]} O-O {[%emt 0:01:30]} 8. Bd3 {[%emt 0:00:30]} Qc7 {[%emt 0:02:30]} 9. Ndf3 {[%emt 0:03:30]} cxd4 {[%emt 0:00:30]} 10. cxd4 {[%emt 0:01:30]} Nb4 {[%emt 0:04:30]} 11. Bb1 {[%emt 0:00:30]} Ne4 {[%emt 0:01:30]} 12. a3 {[%emt 0:00:30]} f6 {[%emt 0:05:30]} 13. O-O {[%emt 0:01:30]} Nc6 {[%emt 0:02:30]} 14. Nd3 {[%emt 0:00:30]} b6 {[%emt 0:00:30]} 15. Bxd6 {[%emt 0:02:30]} Qxd6 {[%emt 0:02:30]} 16. Nd2 {[%emt 0:01:30]} Ba6 {[%emt 0:01:30]} 17. Re1 {[%emt 0:00:30]} f5 {[%emt 0:04:30]} 18. f3 {[%emt 0:00:30]} Nf6 {[%emt 0:00:30]} 19. Qa4 {[%emt 0:05:30]} Bb7 {[%emt 0:02:30]} 20. Ba2 {[%emt 0:02:30]} Kh8 {[%emt 0:00:30]} 21. Nf2 {[%emt 0:00:30]} Nh5 {[%emt 0:02:30]} 22. Rad1 {[%emt 0:01:30]} Rad8 {[%emt 0:03:30]} 23. Nf1 {[%emt 0:03:30]} Qe7 {[%emt 0:02:30]} 24. Qc2 {[%emt 0:02:30]} Qg5 {[%emt 0:03:30]} 25. Bb1 {[%emt 0:00:30]} Rf7 {[%emt 0:03:30]} 26. Nh3 {[%emt 0:02:30]} Qh6 {[%emt 0:01:30]} 27. Ng3 {[%emt 0:06:30]} g5 {[%emt 0:01:30]} 28. Nxh5 {[%emt 0:01:30]} Qxh5 {[%emt 0:01:37]} 29. Rf1 {[%emt 0:08:30]} Rg8 {[%emt 0:00:30]} 30. Qe2 {[%emt 0:03:30]} Nb8 {[%emt 0:04:06]} 31. Bd3 {[%emt 0:00:30]} Rfg7 {[%emt 0:00:30]} 32. Nf2 {[%emt 0:00:30]} Qf7 {[%emt 0:00:30]} 33. g4 {[%emt 0:03:00]} h5 {[%emt 0:02:52]} 34. h3 {[%emt 0:01:03]} Nd7 {[%emt 0:00:30]} 35. Kg2 {[%emt 0:01:00]} Nf8 {[%emt 0:01:09]} 36. e4 {[%emt 0:00:31]} Ng6 {[%emt 0:00:24]} 37. Qd2 {[%emt 0:01:14]} Nh4+ {[%emt 0:00:28]} 38. Kh1 {[%emt 0:00:32]} fxg4 {[%emt 0:00:35]} 39. Nxg4 {[%emt 0:01:22]} hxg4 {[%emt 0:01:44]} 40. fxg4 {[%emt 0:00:12]} dxe4 {[%emt 0:01:36]} 41. Rxf7 {[%emt 0:00:40]} Rxf7 {[%emt 0:00:16]} 42. d5 {[%emt 0:00:35]} exd3 {[%emt 0:00:32]} 43. Qc3+ {[%emt 0:00:21]} Rgg7 {[%emt 0:00:19]} 44. Rxd3 {[%emt 0:01:29]} Bxd5+ {[%emt 0:00:43]} 45. Kh2 {[%emt 0:01:06]} Rf2+ {[%emt 0:02:40]} 46. Kg1 {[%emt 0:00:02]} Kh7 {[%emt 0:00:26]} 47. Kxf2 {[%emt 0:00:15]} Rf7+ {[%emt 0:01:08]} 48. Ke2 {[%emt 0:00:40]} Bg2 {[%emt 0:01:55]} 49. Rd6 {[%emt 0:01:43]} Ng6 {[%emt 0:01:01]} 50. Kd2 {[%emt 0:04:56]} Nf4 {[%emt 0:02:33]} 51. Rd8 {[%emt 0:01:42]} Ng6 {[%emt 0:01:23]} 52. Qc8 {[%emt 0:01:34]} Bb7 {[%emt 0:01:18]} 53. Qxe6 {[%emt 0:00:16]} 1-0